bitfinex/quotes_ETHUSD_20250730
["timestamp","ask_amount","ask_price","bid_price","bid_amount"]
[1753886930330,0.4802,3805.3,3805.0,0.1312]
[1753886930732,0.1312,3805.5,3805.0,3.68450107]
[1753886930954,0.002,3805.7,3805.2,0.1312]
[1753886931339,5.0429,3805.6,3804.9,0.001]
[1753886931541,0.1312,3805.0,3804.9,0.001]
[1753886931872,10.68172089,3805.0,3804.9,0.001]
[1753886932365,11.87896832,3805.0,3804.9,0.001]
[1753886932564,13.32966362,3805.0,3804.9,0.001]
[1753886932766,10.70154273,3805.0,3804.9,0.001]
[1753886933265,6.61054273,3805.0,3804.9,0.001]
[1753886933489,8.64789786,3805.0,3804.9,0.001]
[1753886933791,8.0536,3805.0,3804.9,0.001]
[1753886934086,8.5338,3805.0,3804.9,0.001]
[1753886934761,9.0055,3805.0,3804.9,0.001]
[1753886935286,11.63362089,3805.0,3804.9,0.001]
[1753886935483,9.0055,3805.0,3804.9,0.001]
[1753886935791,10.16886209,3805.0,3804.9,0.001]
[1753886935998,5.12596209,3805.0,3804.9,0.001]
[1753886936297,8.0536,3805.0,3804.9,0.001]
[1753886936799,9.0055,3805.0,3804.9,0.001]
[1753886937107,8.5338,3805.0,3804.9,0.001]
[1753886937262,3.9626,3805.0,3804.9,0.001]
[1753886937461,8.0536,3805.0,3804.9,0.001]
[1753886937657,3.1312,3805.0,3804.9,0.001]
[1753886937893,7.2222,3805.0,3804.9,0.001]
[1753886938079,7.091,3805.0,3804.9,0.001]
[1753886938258,0.8193,3805.7,3804.9,0.9262]
[1753886938461,0.1312,3805.4,3804.9,1.0574]
[1753886938660,4.091,3805.3,3805.0,0.4554]
[1753886938962,4.091,3805.3,3805.1,0.9252]
[1753886939394,0.1312,3805.4,3805.1,0.9252]
[1753886939593,4.091,3805.2,3805.1,1.0564]
[1753886939790,0.1312,3805.6,3805.1,1.0564]
[1753886940014,4.091,3805.3,3805.1,0.5866]
[1753886940212,4.091,3805.3,3804.9,0.001]
[1753886940516,3.97832932,3805.2,3804.9,0.001]
[1753886940724,5.75932089,3805.0,3804.9,0.001]
[1753886941439,7.54142089,3805.0,3804.9,0.001]
[1753886941641,10.16654209,3805.0,3804.9,0.001]
[1753886941841,9.21464209,3805.0,3804.9,0.001]
[1753886941989,9.69484209,3805.0,3804.9,0.001]
[1753886942324,5.12464209,3805.0,3804.9,0.001]
[1753886942523,7.2212,3805.0,3804.9,0.001]
[1753886943225,10.80122089,3805.0,3804.9,0.001]
[1753886943438,8.1731,3805.0,3804.9,0.001]
[1753886944802,3.1312,3805.0,3804.9,0.001]
[1753886945207,8.1731,3805.0,3804.9,0.001]
[1753886945408,9.33887871,3805.0,3804.9,0.001]
[1753886945818,8.86717871,3805.0,3804.9,0.001]
[1753886946024,8.38697871,3805.0,3804.9,0.001]
[1753886946750,8.86717871,3805.0,3804.9,0.001]
[1753886947312,9.11300875,3805.0,3804.9,0.001]
[1753886948256,9.58470875,3805.0,3804.9,0.001]
[1753886948546,12.21282964,3805.0,3804.9,0.001]
[1753886948709,9.58470875,3805.0,3804.9,0.001]
[1753886948906,9.11300875,3805.0,3804.9,0.001]
[1753886949336,9.58470875,3805.0,3804.9,0.001]
[1753886949510,5.49470875,3805.0,3804.9,0.001]
[1753886949711,12.21282964,3805.0,3804.9,0.001]
[1753886949912,8.94392964,3805.0,3804.9,0.001]
[1753886950161,10.40580875,3805.0,3804.9,0.001]
[1753886950659,13.03392964,3805.0,3804.9,0.001]
[1753886951228,13.03435592,3805.0,3804.9,0.001]
[1753886952868,6.31623503,3805.0,3804.9,0.001]
[1753886953083,3.37745632,3805.0,3804.9,0.001]
[1753886953244,7.46647859,3805.0,3804.9,0.001]
[1753886953442,3.37747859,3805.0,3804.9,0.001]
[1753886953774,7.46847859,3805.0,3804.9,0.001]
[1753886954864,4.46847859,3805.0,3804.9,0.4564]
[1753886956501,0.24827859,3805.0,3804.9,0.9262]
[1753886956667,4.091,3805.0,3804.9,1.41284758]
[1753886957267,0.002,3805.0,3804.9,1.41284758]
[1753886958173,0.002,3805.0,3804.9,1.0574]
[1753886960301,0.002,3805.0,3804.9,3.68558996]
[1753886960605,0.002,3805.0,3804.9,1.8582]
[1753886961365,0.002,3805.0,3804.9,0.1322]
[1753886962307,0.002,3805.0,3804.9,0.5936]
[1753886962497,0.002,3805.0,3804.9,1.034]
[1753886962702,0.002,3805.0,3804.9,0.1322]
[1753886963679,5.0497,3805.0,3804.9,0.001]
[1753886963877,8.55731293,3805.0,3804.9,0.001]
[1753886965108,8.80364899,3805.0,3804.9,0.001]
[1753886965604,12.25356988,3805.0,3804.9,0.001]
[1753886967409,12.40143239,3805.0,3804.9,0.001]
[1753886967805,0.39619857,3805.0,3804.9,0.001]
[1753886968004,0.24837411,3805.0,3804.9,0.9028]
[1753886968317,0.002,3805.0,3804.9,0.9028]
[1753886968531,4.089,3805.0,3804.9,0.001]
[1753886968679,4.33527922,3805.0,3804.9,0.001]
[1753886969021,4.33528789,3805.0,3804.9,0.001]
[1753886969318,9.53071581,3805.0,3804.9,0.001]
[1753886969617,12.5530249,3805.0,3804.9,0.001]
[1753886969818,15.3300249,3805.0,3804.9,0.001]
[1753886970009,9.92490401,3805.0,3804.9,0.001]
[1753886970208,12.5530249,3805.0,3804.9,0.001]
[1753886970604,12.15888577,3805.0,3804.9,0.001]
[1753886971511,13.10301749,3805.0,3804.9,0.001]
[1753886971822,43.10301749,3805.0,3804.9,0.001]
[1753886973618,42.55301749,3805.0,3804.9,0.001]
[1753886973829,5.8378966,3805.0,3804.9,0.001]
[1753886973990,3.64246868,3805.0,3804.9,0.001]
[1753886974316,7.58166929,3805.0,3804.9,0.9028]
[1753886974529,3.24833696,3805.0,3804.9,0.9028]
[1753886974738,7.33533696,3805.0,3804.9,0.9028]
[1753886976023,7.33533696,3805.0,3804.9,0.001]
[1753886976517,7.33533696,3805.0,3804.9,0.9028]
[1753886976822,7.33533696,3805.0,3804.9,0.001]
[1753886976981,3.24833696,3805.0,3804.9,0.001]
[1753886977181,3.24833696,3805.0,3804.9,0.9028]
[1753886977182,7.33533696,3805.0,3804.9,0.9028]
[1753886977596,7.33533696,3805.0,3804.9,0.001]
[1753886978026,3.24833696,3805.0,3804.9,0.001]
[1753886978227,7.33533696,3805.0,3804.9,0.001]
[1753886978856,9.04169066,3805.0,3804.9,0.001]
[1753886979056,12.06377043,3805.0,3804.9,0.001]
[1753886980664,8.32821496,3805.0,3804.9,0.001]
[1753886981017,3.99499066,3805.0,3804.9,0.001]
[1753886981262,11.44153595,3805.0,3804.9,0.001]
[1753886981429,9.43565068,3805.0,3804.9,0.001]
[1753886981634,8.81341506,3805.0,3804.9,0.001]
[1753886981830,8.08199066,3805.0,3804.9,0.001]
[1753886982041,7.72929414,3805.0,3804.9,0.001]
[1753886982263,11.31711503,3805.0,3804.9,0.001]
[1753886982449,8.68899414,3805.0,3804.9,0.001]
[1753886982642,11.31711503,3805.0,3804.9,0.001]
[1753886982868,12.72473867,3805.0,3804.9,0.001]
[1753886983053,13.49353867,3805.0,3804.9,0.001]
[1753886984667,16.27053867,3805.0,3804.9,0.001]
[1753886984967,8.93203867,3805.0,3804.9,0.001]
[1753886985164,13.01903867,3805.0,3804.9,0.001]
[1753886985326,13.49353867,3805.0,3804.9,0.001]
[1753886986874,14.04353867,3805.0,3804.9,0.001]
[1753886987681,13.01903867,3805.0,3804.9,0.001]
[1753886987880,5.81871778,3805.0,3804.9,0.001]
[1753886988088,4.72912613,3805.0,3804.9,0.001]
[1753886988250,4.72912613,3805.0,3804.9,0.465]
[1753886988449,3.64212613,3805.0,3804.9,0.465]
[1753886988648,3.64212613,3805.0,3804.9,0.8997]
[1753886988848,7.72912613,3805.0,3804.9,1.704]
[1753886989080,7.72912613,3805.0,3804.9,0.001]
[1753886989287,8.25240156,3805.0,3804.9,0.001]
[1753886989588,12.61032245,3805.0,3804.9,0.001]
[1753886990072,12.08883083,3805.0,3804.9,0.001]
[1753886990233,12.57673083,3805.0,3804.9,0.001]
[1753886990567,13.00423083,3805.0,3804.9,0.001]
[1753886990970,12.33053809,3805.0,3804.9,0.001]
[1753886991189,12.57676335,3805.0,3804.9,0.001]
[1753886991391,13.00426335,3805.0,3804.9,0.001]
[1753886992647,13.00431332,3805.0,3804.9,0.001]
[1753886992972,13.00432938,3805.0,3804.9,0.001]
[1753886993188,43.55432938,3805.0,3804.9,0.001]
[1753886993833,43.55437449,3805.0,3804.9,0.001]
[1753886998937,13.55437449,3805.0,3804.9,0.001]
[1753886999380,43.55437449,3805.0,3804.9,0.001]
[1753887000070,43.55438864,3805.0,3804.9,0.001]
[1753887000368,43.55438864,3805.0,3804.5,0.001]
[1753887000369,3.9375972,3804.6,3804.5,0.001]
[1753887000553,37.70903234,3804.6,3804.5,0.001]
[1753887000882,37.70903234,3804.6,3804.5,0.8997]
[1753887000883,7.85743514,3804.6,3804.5,0.8997]
[1753887001178,3.77134203,3804.6,3804.5,0.8997]
[1753887001384,0.77134203,3804.6,3804.5,1.6771]
[1753887001583,0.24617092,3804.6,3804.5,4.60447628]
[1753887001886,0.002,3805.0,3804.6,0.7774]
[1753887002189,0.24812449,3805.0,3804.9,0.1312]
[1753887002476,0.24812449,3805.0,3804.9,1.0299]
[1753887002675,0.66833448,3805.0,3804.8,0.7774]
[1753887002881,4.72590516,3804.9,3804.8,0.7774]
[1753887003467,4.72590516,3804.9,3804.6,0.464]
[1753887003689,0.63990516,3804.8,3804.6,0.4347]
[1753887003867,7.85713014,3804.7,3804.5,0.7784]
[1753887004061,4.75235946,3804.6,3804.5,0.001]
[1753887005470,7.75235946,3804.6,3804.5,0.001]
[1753887005665,7.72593014,3804.6,3804.5,0.001]
[1753887005869,7.72600852,3804.6,3804.5,0.001]
[1753887006888,3.64000852,3804.6,3804.5,0.001]
[1753887007092,4.72600852,3804.6,3804.5,0.8997]
[1753887008092,7.75243784,3804.6,3804.5,0.001]
[1753887008291,4.9650623,3804.6,3804.5,0.001]
[1753887008505,8.5631623,3804.6,3804.5,0.001]
[1753887008923,8.316971,3804.6,3804.5,0.001]
[1753887010039,7.92315378,3804.6,3804.5,0.001]
[1753887010211,8.16940366,3804.6,3804.5,0.001]
[1753887011540,8.80507649,3804.6,3804.5,0.001]
[1753887011915,8.31717649,3804.6,3804.5,0.001]
[1753887012516,9.05137843,3804.6,3804.5,0.001]
[1753887013245,8.31717649,3804.6,3804.5,0.001]
[1753887013438,4.47748096,3804.6,3804.5,0.001]
[1753887013638,8.31717649,3804.6,3804.5,0.001]
[1753887014000,8.56348391,3804.6,3804.5,0.001]
[1753887014202,8.31717649,3804.6,3804.5,0.001]
[1753887015125,0.24624988,3804.6,3804.5,1.6757]
[1753887015436,0.24627315,3804.6,3804.5,1.6757]
[1753887015610,4.085,3804.6,3804.5,1.8069]
[1753887015821,4.085,3804.6,3804.5,2.25045318]
[1753887016248,0.002,3805.0,3804.5,2.25045318]
[1753887016418,4.085,3804.9,3804.5,1.35175318]
[1753887016619,0.24623147,3804.8,3804.7,0.1312]
[1753887017026,4.085,3804.8,3804.7,0.1312]
[1753887017232,4.33123147,3804.8,3804.7,0.1312]
[1753887017429,4.33123147,3804.8,3804.7,0.5593]
[1753887017638,4.33123147,3804.8,3804.7,1.0476]
[1753887017852,0.24623147,3804.8,3804.7,1.0476]
[1753887018164,0.002,3805.0,3804.8,0.7877]
[1753887018465,0.002,3805.0,3804.8,2.15056366]
[1753887018630,0.002,3805.0,3804.8,0.7877]
[1753887018631,4.085,3804.9,3804.8,0.7877]
[1753887018833,0.24615898,3804.9,3804.8,0.7877]
[1753887019024,4.085,3804.9,3804.8,3.5471428]
[1753887019225,0.24614874,3804.9,3804.8,4.0354428]
[1753887019422,0.002,3805.0,3804.9,3.46028996]
[1753887019656,4.087,3805.0,3804.9,2.46212866]
[1753887019861,4.33313658,3805.0,3804.9,1.7485]
[1753887020655,4.33313658,3805.0,3804.9,1.3204]
[1753887022166,4.33313658,3805.0,3804.9,0.8321]
[1753887022837,4.33213658,3805.0,3804.9,1.3204]
[1753887023036,4.33213658,3805.0,3804.9,0.8321]
[1753887023777,4.086,3805.0,3804.9,0.8321]
[1753887023984,4.33206834,3805.0,3804.9,1.7485]
[1753887024344,4.086,3805.0,3804.9,1.7485]
[1753887024544,4.086,3805.0,3804.9,1.3204]
[1753887025283,0.002,3805.0,3804.9,1.3204]
[1753887025479,4.086,3805.0,3804.9,1.7485]
[1753887025655,0.24805347,3805.0,3804.9,1.7485]
[1753887025863,4.086,3805.0,3804.9,4.50788996]
[1753887026044,4.33205347,3805.0,3804.9,4.50788996]
[1753887026364,4.086,3805.0,3804.9,4.50788996]
[1753887027373,0.002,3805.0,3804.9,4.50788996]
[1753887027576,4.086,3805.0,3804.9,5.22150601]
[1753887031947,0.002,3805.0,3804.9,5.22150601]
[1753887032154,0.002,3805.0,3804.9,5.77150601]
[1753887033177,0.002,3805.0,3804.9,5.22150601]
[1753887033375,4.085,3805.0,3804.9,4.07978996]
[1753887034090,4.085,3805.0,3804.9,4.50788996]
[1753887034389,0.002,3805.0,3804.9,5.05788996]
[1753887037504,0.002,3805.0,3804.9,8.05788996]
[1753887038056,0.002,3805.4,3805.3,3.95291369]
[1753887038312,0.002,3805.7,3805.6,3.95270653]
[1753887038511,0.002,3805.7,3805.6,3.97898359]
[1753887038853,0.002,3805.7,3805.6,5.00030653]
[1753887040382,0.002,3805.7,3805.6,5.02658359]
[1753887041189,0.002,3805.7,3805.6,5.00030653]
[1753887041503,0.002,3805.7,3805.6,6.41799763]
[1753887043603,0.042,3805.9,3805.8,3.98016844]
[1753887043984,0.042,3805.9,3805.8,5.02776844]
[1753887044617,0.042,3805.9,3805.8,8.02776844]
[1753887047411,0.042,3805.9,3805.8,12.10776844]
[1753887047584,0.042,3805.9,3805.8,14.27964661]
[1753887049329,0.002,3806.3,3806.2,2.62729231]
[1753887049527,0.002,3806.3,3806.2,6.95499231]
[1753887049833,0.002,3806.3,3806.2,8.03349231]
[1753887050334,0.10639678,3806.7,3806.6,2.62701623]
[1753887050506,0.9994,3807.9,3806.6,2.62701623]
[1753887050507,0.4904,3807.6,3807.1,0.55]
[1753887050706,0.04,3807.9,3807.8,2.62618835]
[1753887050904,0.04,3807.9,3807.8,3.40388835]
[1753887051293,0.04,3807.9,3807.8,2.62618835]
[1753887051494,0.04,3807.9,3807.8,3.17618835]
[1753887051699,0.04,3807.9,3807.8,4.79826074]
[1753887051894,0.04,3807.9,3807.8,10.13696074]
[1753887052116,0.04,3807.9,3807.8,10.59816074]
[1753887052316,0.04,3807.9,3807.8,19.16377633]
[1753887052835,0.00103272,3808.4,3808.3,5.62584355]
[1753887053043,0.106397,3809.8,3809.7,2.62487859]
[1753887053336,0.13506181,3810.4,3809.8,3.1748097]
[1753887053568,0.24416045,3810.3,3809.8,3.99275779]
[1753887053694,0.4904,3811.3,3809.8,4.9138097]
[1753887053912,0.4904,3811.4,3809.8,4.9138097]
[1753887054254,6.314,3811.8,3810.8,2.62412091]
[1753887054456,0.04,3811.9,3810.8,12.5836777]
[1753887054627,0.04,3811.9,3810.8,15.43362884]
[1753887055018,0.4904,3811.5,3810.8,8.92071325]
[1753887055380,0.04509926,3810.9,3810.8,8.92071325]
[1753887055521,0.04509926,3810.9,3810.8,9.40681325]
[1753887055712,0.04509926,3810.9,3810.8,0.8177]
[1753887055918,0.98279926,3810.9,3810.5,4.085]
[1753887056157,0.9377,3810.8,3810.2,6.17453407]
[1753887056463,0.04509926,3810.9,3810.7,0.55]
[1753887056760,0.53549926,3810.9,3810.6,4.8754]
[1753887057071,0.04509926,3810.9,3810.7,0.55]
[1753887057279,0.04509926,3810.9,3810.8,8.20942091]
[1753887057573,0.04509926,3810.9,3810.8,11.20942091]
[1753887058879,0.04509926,3810.9,3810.8,7.26212091]
[1753887059024,0.53549926,3810.9,3810.8,4.088]
[1753887059229,0.53549926,3810.9,3810.8,7.26212091]
[1753887059230,0.04509926,3810.9,3810.8,7.26212091]
[1753887060178,0.04509926,3810.9,3810.8,6.71212091]
[1753887060326,0.98279926,3810.9,3810.2,4.086]
[1753887060525,0.04509926,3810.9,3810.8,0.1312]
[1753887061159,0.7604,3810.8,3810.5,0.1312]
[1753887061367,1.40085021,3810.7,3810.4,0.1312]
[1753887061580,0.04509926,3810.9,3810.3,0.8285]
[1753887061783,0.04509926,3810.9,3810.8,8.3209365]
[1753887062099,0.8108,3812.4,3811.8,2.62343249]
[1753887062100,0.438474,3812.1,3811.8,2.62343249]
[1753887062245,0.438474,3812.1,3812.0,2.62329485]
[1753887062445,0.885774,3812.1,3812.0,0.1312]
[1753887062997,0.835774,3812.1,3812.0,0.1312]
[1753887063145,0.4473,3812.5,3812.0,0.1312]
[1753887063348,0.4473,3812.4,3812.0,2.75448287]
[1753887063595,0.811,3812.8,3812.6,0.1312]
[1753887063888,0.24170198,3812.7,3812.6,8.73849761]
[1753887064089,0.04,3812.9,3812.8,3.17274443]
[1753887064272,0.04,3812.9,3812.8,2.62274443]
[1753887064592,0.4873,3812.9,3812.2,0.55]
[1753887064807,0.04,3812.9,3812.1,12.29183557]
[1753887064952,0.04,3812.9,3812.8,2.62274443]
[1753887065284,0.04,3812.9,3812.8,3.17274443]
[1753887066493,0.04,3812.9,3812.8,4.96257187]
[1753887067048,0.04,3812.9,3812.8,4.93634443]
[1753887067285,7.0777,3816.0,3813.8,3.96445674]
[1753887067485,0.2414469,3814.8,3813.8,14.30073617]
[1753887067655,0.4828938,3814.7,3813.8,18.24803617]
[1753887067860,0.04,3815.9,3814.8,2.6213694]
[1753887068064,0.28141594,3814.9,3814.8,6.33389662]
[1753887068257,1e-08,3815.0,3814.9,3.17130068]
[1753887068592,1e-08,3815.0,3814.9,6.88433128]
[1753887068787,7.57612461,3819.2,3815.1,0.8253]
[1753887068988,7.57612461,3819.2,3816.8,2.6199958]
[1753887068989,0.4904,3817.8,3816.8,2.6199958]
[1753887069198,0.4904,3818.1,3816.8,5.11349995]
[1753887069494,2.61943963,3817.7,3816.8,4.154]
[1753887069789,0.4904,3817.6,3816.8,4.154]
[1753887069974,0.4904,3818.0,3816.8,0.9473]
[1753887070289,0.4904,3817.3,3816.4,0.8253]
[1753887070594,0.4904,3817.3,3816.5,4.169]
[1753887070790,0.4904,3818.0,3816.6,0.57620133]
[1753887071096,0.4904,3818.0,3816.6,0.9473]
[1753887071284,0.4904,3816.8,3815.2,0.4612]
[1753887071452,0.4904,3816.8,3816.7,2.62006445]
[1753887071453,0.94253099,3816.8,3816.7,2.62006445]
[1753887071654,0.04,3817.9,3816.7,9.69758097]
[1753887071853,0.04,3817.9,3816.8,0.97349995]
[1753887072090,0.04,3817.9,3817.0,0.55]
[1753887072391,0.04,3817.9,3817.8,2.61930955]
[1753887072592,0.4904,3818.6,3816.9,2.18168908]
[1753887072593,0.04,3818.9,3818.2,3.0]
[1753887072899,0.04,3818.9,3818.8,2.61862365]
[1753887073192,0.04,3818.9,3818.8,2.64480988]
[1753887073356,0.04,3818.9,3818.8,4.00650988]
[1753887073551,1e-08,3818.9,3818.8,4.92762365]
[1753887073899,0.04,3819.9,3819.8,2.61793811]
[1753887074377,0.04,3819.9,3819.8,2.77531749]
[1753887074585,0.04,3819.9,3819.8,2.74913811]
[1753887074812,0.8347,3819.9,3819.8,0.1312]
[1753887074972,0.8347,3819.9,3817.6,2.61944452]
[1753887074973,0.7844,3819.8,3818.1,4.256]
[1753887075176,0.1312,3819.5,3819.0,0.1312]
[1753887075477,0.7947,3819.4,3818.0,0.4612]
[1753887075678,0.7844,3819.8,3818.1,0.51229103]
[1753887075883,0.04,3819.9,3819.3,0.1312]
[1753887076089,0.04,3819.9,3819.8,0.1312]
[1753887076254,0.5304,3819.9,3819.8,0.1312]
[1753887076455,0.5304,3819.9,3819.8,2.74913811]
[1753887076456,0.04,3819.9,3819.8,2.74913811]
[1753887076652,0.04,3819.9,3819.8,3.20481749]
[1753887076854,0.04,3819.9,3819.8,3.17863811]
[1753887077053,0.04,3819.9,3819.8,2.74913811]
[1753887077474,0.04,3819.9,3819.8,4.18025543]
[1753887077873,0.04,3819.9,3819.8,3.17863811]
[1753887078204,0.04,3820.9,3819.8,4.46991749]
[1753887078404,0.04,3820.9,3820.7,2.61731962]
[1753887078568,0.04,3820.9,3820.8,2.74845293]
[1753887078760,0.04,3820.9,3820.8,0.1312]
[1753887078972,0.04,3820.9,3820.8,2.74845293]
[1753887079170,0.04,3820.9,3820.8,2.77462545]
[1753887079419,0.04,3820.9,3820.8,4.05819573]
[1753887079710,0.04,3820.9,3820.8,3.41800345]
[1753887079915,0.04,3820.9,3820.8,3.39183093]
[1753887080119,0.04,3820.9,3820.8,0.1312]
[1753887080315,0.5354,3820.9,3820.4,4.285]
[1753887080623,0.2408874,3820.8,3820.4,4.285]
[1753887080804,0.2408874,3820.7,3820.6,2.61733839]
[1753887081006,0.04,3820.9,3820.8,2.61725293]
[1753887081305,0.04,3820.9,3820.8,2.64342545]
[1753887081697,0.04,3820.9,3819.9,0.9795]
[1753887082018,0.4954,3820.8,3819.9,4.284]
[1753887082229,0.4954,3820.8,3820.5,2.61740384]
[1753887082431,0.04,3820.9,3820.2,2.61766399]
[1753887082586,0.04,3820.9,3820.2,1.0413865]
[1753887082767,0.04,3820.9,3820.8,2.61725293]
[1753887083106,0.04,3820.9,3820.3,3.51199547]
[1753887083107,0.04,3820.9,3820.3,0.4295]
[1753887083281,0.04,3820.9,3820.8,2.61725293]
[1753887083485,0.04,3820.9,3820.3,4.7225]
[1753887083672,0.04,3820.9,3820.8,2.61725293]
[1753887083867,0.04,3820.9,3820.4,2.61752161]
[1753887084086,0.04,3820.9,3820.8,2.61725293]
[1753887084285,0.04,3820.9,3820.3,4.293]
[1753887084482,0.04,3820.9,3820.8,2.61725293]
[1753887084798,0.04,3820.9,3819.7,0.4649]
[1753887085011,0.04,3820.9,3819.1,2.61837328]
[1753887085012,0.4954,3820.8,3819.2,0.8188]
[1753887085227,3.0,3820.6,3819.1,4.308]
[1753887085418,3.49155679,3820.7,3819.1,4.308]
[1753887085419,0.9353,3820.5,3819.5,2.61808493]
[1753887085724,0.4954,3820.4,3819.4,2.61818566]
[1753887085925,3.0,3820.0,3818.4,2.61889796]
[1753887086230,3.85322394,3819.9,3818.1,4.346]
[1753887086390,3.55323899,3819.8,3818.6,2.61873062]
[1753887086588,0.02642932,3819.7,3818.1,0.04]
[1753887086919,0.8012,3819.3,3818.1,0.04]
[1753887087123,0.4954,3819.6,3818.2,0.8944]
[1753887087321,0.43428218,3820.7,3818.2,0.8944]
[1753887087322,0.4954,3820.4,3819.5,2.61808969]
[1753887087525,0.4954,3820.4,3819.8,2.6179267]
[1753887087685,0.4954,3820.4,3819.4,4.308]
[1753887087886,0.4954,3820.4,3819.5,2.61814373]
[1753887088118,0.4954,3820.4,3820.3,2.61759547]
[1753887088300,0.4954,3820.4,3819.7,2.61800664]
[1753887088630,0.4954,3820.4,3819.8,2.61792169]
[1753887088792,0.4954,3820.4,3819.8,2.61791568]
[1753887088991,0.4954,3820.4,3819.9,2.61782065]
[1753887089225,0.4954,3820.4,3819.3,2.61822486]
[1753887089391,0.4954,3820.4,3819.5,4.306]
[1753887089724,0.4954,3820.4,3819.6,2.61807519]
[1753887089953,0.4954,3820.4,3819.5,4.308]
[1753887090103,0.8073,3820.6,3820.5,2.61745844]
[1753887090288,0.5374,3820.9,3819.6,2.64425594]
[1753887090289,0.042,3820.9,3820.7,2.61725389]
[1753887090483,0.5374,3820.9,3820.8,0.1312]
[1753887090689,0.9773,3820.9,3820.8,0.1312]
[1753887090991,0.5374,3820.9,3820.8,0.1312]
[1753887091193,0.042,3820.9,3820.8,0.1312]
[1753887091632,0.5374,3820.9,3820.8,0.1312]
[1753887092250,0.042,3820.9,3820.8,0.1312]
[1753887092739,0.042,3820.9,3820.8,2.74845293]
[1753887093102,0.042,3820.9,3820.8,3.28503714]
[1753887093298,0.042,3820.9,3820.8,4.20560966]
[1753887093532,0.042,3820.9,3820.8,3.71453714]
[1753887093742,0.042,3820.9,3820.8,4.20560966]
[1753887094970,0.04,3821.9,3821.8,2.6165681]
[1753887095174,0.04,3821.9,3821.8,0.15736568]
[1753887095428,0.04,3821.9,3821.6,0.02616705]
[1753887095632,0.04,3821.9,3821.8,2.6165681]
[1753887096284,0.04,3821.9,3821.8,7.86469541]
[1753887096583,0.04,3821.9,3821.8,8.75909541]
[1753887096733,0.04,3821.9,3821.8,6.9115681]
[1753887097565,0.04,3821.9,3821.8,4.294]
[1753887097777,0.04,3821.9,3821.7,4.294]
[1753887097966,0.04,3821.9,3821.8,2.6165681]
[1753887098287,0.04,3821.9,3821.8,4.294]
[1753887098834,0.04,3821.9,3821.6,4.294]
[1753887099069,0.04,3821.9,3821.8,2.6165681]
[1753887100454,0.04,3821.9,3821.6,6.91063815]
[1753887100791,0.04,3821.9,3821.8,2.6165681]
[1753887100995,3.0,3823.3,3821.6,4.7235]
[1753887101191,0.39289042,3823.2,3821.7,2.61663657]
[1753887101354,3.0,3823.1,3821.6,4.294]
[1753887101558,2.61579046,3823.0,3821.7,2.61658717]
[1753887101787,2.61570137,3823.1,3821.8,2.61656287]
[1753887102192,0.39289042,3823.2,3821.9,0.02616499]
[1753887102351,0.39289042,3823.2,3821.6,4.294]
[1753887102352,0.92890421,3823.4,3822.4,2.61611113]
[1753887102556,0.92890421,3823.4,3822.0,0.02616431]
[1753887102557,0.92890421,3823.4,3822.5,2.61602503]
[1753887102795,0.92890421,3823.4,3822.8,2.61587973]
[1753887102980,0.92890421,3823.4,3822.9,2.56580652]
[1753887103293,1.42430421,3823.4,3822.4,2.61612095]
[1753887103478,0.92890421,3823.4,3822.2,0.8944]
[1753887103679,1.07133463,3823.4,3822.3,0.49106225]
[1753887104091,0.02642932,3823.3,3822.1,0.7659]
[1753887104267,0.4954,3823.3,3822.3,2.61616731]
[1753887104466,0.4954,3823.3,3822.3,2.6162155]
[1753887104682,0.4954,3823.3,3822.2,0.4295]
[1753887104898,0.92890421,3823.4,3822.8,2.61587731]
[1753887105098,0.92890421,3823.4,3822.3,0.4649]
[1753887105302,0.92890421,3823.4,3823.1,0.1304]
[1753887105819,0.6822,3823.3,3823.1,0.1304]
[1753887105983,0.6822,3823.3,3822.7,0.1304]
[1753887105984,2.74600996,3823.2,3822.7,0.1304]
[1753887106303,1.13218463,3823.4,3822.2,2.61629428]
[1753887106523,0.4954,3823.1,3822.9,0.1304]
[1753887106915,0.4728,3823.0,3822.9,0.1304]
[1753887107618,0.4728,3823.0,3822.0,10.0]
[1753887107796,0.84814005,3823.0,3822.8,0.1304]
[1753887108001,0.4781,3823.3,3822.8,0.1304]
[1753887108494,0.4781,3823.3,3822.4,0.9172]
[1753887108818,0.1304,3823.1,3822.6,0.1312]
[1753887109222,0.1304,3823.2,3822.6,0.1312]
[1753887109382,0.4728,3823.1,3822.3,2.61617086]
[1753887109584,0.4728,3823.1,3822.8,0.1304]
[1753887109993,0.002,3823.1,3822.8,0.1304]
[1753887110523,0.4728,3823.0,3822.8,0.1304]
[1753887110735,0.002,3823.1,3822.8,0.1304]
[1753887111022,0.002,3823.1,3822.9,0.1304]
[1753887112037,0.002,3823.1,3823.0,3.53294679]
[1753887112184,0.002,3823.1,3822.1,0.9172]
[1753887112390,0.002,3823.1,3822.5,2.61605441]
[1753887112586,0.002,3823.1,3822.4,0.4764]
[1753887112782,0.002,3823.1,3822.6,2.6160205]
[1753887112996,0.002,3823.1,3822.8,2.61582223]
[1753887113222,0.002,3823.1,3822.7,2.61595146]
[1753887113431,0.002,3823.1,3822.6,3.09241989]
[1753887113624,0.002,3823.1,3822.7,0.4764]
[1753887113829,0.002,3823.1,3822.3,0.9172]
[1753887114167,0.002,3823.1,3823.0,2.61574679]
[1753887114300,0.002,3823.1,3822.6,0.9172]
[1753887114682,0.002,3823.1,3823.0,2.61574679]
[1753887115236,0.002,3823.1,3823.0,3.53294679]